fUSD/lending_fUSD_20240628
["ID","MTS","AMOUNT","RATE_DAILY","PERIOD"]
[330566854,1719579041725,-151.0,0.00019399,2]
[330566855,1719579041735,-26542.09171296,0.000194,2]
[330566856,1719579041744,-1137.62,0.00019441,2]
[330566857,1719579041754,-159.38,0.00019449,2]
[330566858,1719579041764,-98731.53491438,0.00019451,2]
[330566859,1719579041773,-151.0,0.00019451,2]
[330566860,1719579041782,-151.0,0.00019451,2]
[330566861,1719579041792,-151.0,0.00019451,2]
[330566862,1719579041801,-173.231072,0.00019451,2]
[330566863,1719579041811,-151.0,0.00019451,2]
[330566864,1719579041820,-151.0,0.00019451,2]
[330566865,1719579041830,-151.0,0.00019451,2]
[330566866,1719579041839,-151.0,0.00019451,2]
[330566867,1719579041848,-151.0,0.00019451,2]
[330566868,1719579041859,-155.073438,0.00019451,2]
[330566869,1719579041868,-155.073438,0.00019451,2]
[330566870,1719579041878,-151.0,0.00019451,2]
[330566871,1719579041887,-191.097886,0.00019451,2]
[330566872,1719579041897,-191.097886,0.00019451,2]
[330566873,1719579041907,-500.0,0.00019452,2]
[330566874,1719579041917,-199.519902,0.00019452,2]
[330566875,1719579041926,-151.0,0.00019452,2]
[330566876,1719579041935,-151.0,0.00019452,2]
[330566877,1719579041945,-151.0,0.00019452,2]
[330566878,1719579041955,-151.0,0.00019452,2]
[330566879,1719579041964,-151.0,0.00019452,2]
[330566880,1719579041974,-151.0,0.00019452,2]
[330566881,1719579041984,-626.507742,0.00019452,2]
[330566882,1719579041993,-626.507742,0.00019452,2]
[330566883,1719579042003,-151.0,0.00019452,2]
[330566884,1719579042013,-151.0,0.00019452,2]
[330566885,1719579042022,-151.0,0.00019452,2]
[330566886,1719579042032,-275.982618,0.00019452,2]
[330566887,1719579042042,-160.0,0.00019453,2]
[330566888,1719579042051,-151.0,0.00019453,2]
[330566889,1719579042061,-151.0,0.00019453,2]
[330566890,1719579042070,-862.221559,0.00019453,2]
[330566891,1719579042080,-151.0,0.00019453,2]
[330566892,1719579042089,-862.221559,0.00019453,2]
[330566893,1719579042099,-151.0,0.00019453,2]
[330566894,1719579042109,-151.0,0.00019453,2]
[330566895,1719579042119,-151.0,0.00019453,2]
[330566896,1719579042129,-627.62,0.00019493,2]
[330566897,1719579042139,-182.0,0.00019508,2]
[330566898,1719579042148,-193.31,0.00019533,2]
[330566899,1719579042158,-300.0,0.00019542,2]
[330566900,1719579042167,-250.0,0.00019579,2]
[330566901,1719579042177,-250.0,0.00019579,2]
[330566902,1719579042187,-160.0,0.0001969,2]
[330566903,1719579042197,-300.0,0.00019723,2]
[330566904,1719579042207,-305.3305634,0.00019725,2]
[330566905,1719579042217,-500.0,0.00019726,2]
[330566906,1719579042227,-351.18950093,0.00019744,2]
[330566907,1719579042238,-242.22120042,0.00019799,2]
[330566908,1719579042247,-5667.3,0.000199,2]
[330566909,1719579042256,-3674.74734215,0.000199,2]
[330566910,1719579042266,-320.82085,0.000199,2]
[330566911,1719579042276,-320.82085,0.000199,2]
[330566912,1719579042285,-173.036362,0.000199,2]
[330566913,1719579042294,-151.0,0.000199,2]
[330566914,1719579042304,-173.036362,0.000199,2]
[330566915,1719579042315,-910.738176,0.000199,2]
[330566916,1719579042324,-910.738176,0.000199,2]
[330566917,1719579042334,-553.103694,0.000199,2]
[330566918,1719579042344,-553.103694,0.000199,2]
[330566919,1719579042354,-151.0,0.000199,2]
[330566920,1719579042364,-151.0,0.000199,2]
[330566921,1719579042374,-151.0,0.000199,2]
[330566922,1719579042382,-151.0,0.000199,2]
[330566923,1719579042392,-151.0,0.000199,2]
[330566924,1719579042401,-151.0,0.000199,2]
[330566925,1719579042410,-151.0,0.000199,2]
[330566926,1719579042420,-151.0,0.000199,2]
[330566927,1719579042430,-199.004141,0.00019904,2]
[330566928,1719579042440,-199.004141,0.00019904,2]
[330566929,1719579042450,-192.419526,0.00019904,2]
[330566930,1719579042460,-192.419526,0.00019904,2]
[330566931,1719579042470,-517.34538336,0.00019905,2]
[330566932,1719579042479,-5015.82097915,0.00019926,2]
[330566933,1719579042489,-160.0,0.00019927,2]
[330566934,1719579042499,-182.0,0.00019943,2]
[330566935,1719579042508,-155.96,0.00019977,2]
[330566936,1719579042517,-9368.61025517,0.00019987,2]
[330566937,1719579042526,-201.70451698,0.0001999,7]
[330566938,1719579042535,-151.75,0.00019995,2]
[330566939,1719579042544,-500.0,0.0002,2]
[330566940,1719579042553,-9852.1009228,0.0002,2]
[330566941,1719579042563,-339.23553452,0.0002,7]
[330566942,1719579042572,-257.0,0.0002,2]
[330566943,1719579042582,-6274.87852259,0.0002,2]
[330566944,1719579042591,-948.77,0.0002,2]
[330566945,1719579042601,-3000.0,0.0002,2]
[330566946,1719579042612,-3000.0,0.0002,2]
[330566947,1719579042622,-3000.0,0.0002,2]
[330566948,1719579042631,-3000.0,0.0002,2]
[330566949,1719579042646,-3000.0,0.0002,2]
[330566950,1719579042656,-9869.29557365,0.0002,2]
[330566951,1719579042665,-4972.25450866,0.0002,2]
[330566952,1719579042675,-442.73217457,0.0002,2]
[330566953,1719579042686,-155.57274878,0.0002,2]
[330566954,1719579042695,-188.08625707,0.0002,2]
[330566955,1719579042705,-867.21230229,0.0002,2]
[330566956,1719579042714,-155.0,0.0002,2]
[330566957,1719579042725,-155.0,0.0002,2]
[330566958,1719579042735,-327.02420312,0.0002,2]
[330566959,1719579042745,-2384.97376412,0.0002,7]
[330566960,1719579042755,-155.0,0.0002,2]
[330566961,1719579042764,-1789.5532659,0.0002,2]
[330566962,1719579042774,-151.0,0.0002,2]
[330566963,1719579042784,-151.0,0.0002,2]
[330566964,1719579042793,-151.0,0.0002,2]
[330566965,1719579042803,-151.0,0.0002,2]
[330566966,1719579042812,-151.0,0.0002,2]
[330566967,1719579042822,-151.0,0.0002,2]
[330566968,1719579042832,-151.0,0.0002,2]
[330566969,1719579042842,-191.097886,0.0002,2]
[330566970,1719579042948,-191.097886,0.0002,2]
[330566971,1719579042958,-934.90594291,0.0002,2]
[330566972,1719579042968,-11164.97856191,0.0002,2]
[330566973,1719579042978,-1152.0,0.00020031,2]
[330566974,1719579042988,-156.13682179,0.00020057,2]
[330566975,1719579042997,-1137.62,0.00020073,2]
[330566976,1719579043007,-418.71,0.00020076,2]
[330566977,1719579043017,-853.46,0.00020076,2]
[330566978,1719579043026,-853.46,0.00020076,2]
[330566979,1719579043036,-418.71,0.00020076,2]
[330566982,1719579043045,-853.46,0.00020076,2]
[330566984,1719579043054,-418.71,0.00020076,2]
[330566986,1719579043064,-687.748777,0.00020083,2]
[330566987,1719579043073,-167.111417,0.00020083,2]
[330566988,1719579043082,-187.440255,0.00020083,2]
[330566989,1719579043092,-174.263907,0.00020083,2]
[330566990,1719579043101,-350.0,0.00020127,2]
[330566991,1719579043112,-350.0,0.00020127,2]
[330566992,1719579043122,-3674.74734209,0.00020172,2]
[330566993,1719579043131,-500.0,0.00020177,2]
[330566994,1719579043140,-500.0,0.00020177,2]
[330566995,1719579043151,-500.0,0.00020177,2]
[330566996,1719579043160,-500.0,0.00020177,2]
[330566997,1719579043170,-500.0,0.00020177,2]
[330566998,1719579043180,-500.0,0.00020177,2]
[330566999,1719579043189,-1000.0,0.00020188,2]
[330567000,1719579043198,-2023.15110219,0.000202,2]
[330567001,1719579043208,-500.0,0.00020273,2]
[330567002,1719579043218,-151.0,0.00020273,2]
[330567003,1719579043227,-155.073438,0.00020273,2]
[330567004,1719579043237,-155.073438,0.00020273,2]
[330567005,1719579043246,-687.748777,0.00020334,2]
[330567006,1719579043256,-187.440255,0.00020334,2]
[330567007,1719579043265,-182.0,0.00020378,2]
[330567008,1719579043274,-500.0,0.00020399,2]
[330567012,1719579043284,-174.263907,0.00020418,2]
[330567014,1719579043293,-3674.74734209,0.00020444,2]
[330567016,1719579043303,-500.0,0.00020547,2]
[330567019,1719579043313,-800.0,0.00020548,2]
[330567022,1719579043322,-800.0,0.00020548,2]
[330567024,1719579043332,-800.0,0.00020548,2]
[330567026,1719579043342,-800.0,0.00020548,2]
[330567028,1719579043351,-687.748777,0.00020585,2]
[330567030,1719579043365,-187.440255,0.00020585,2]
[330567032,1719579043374,-156.48606251,0.00020675,2]
[330567035,1719579043384,-450.0,0.00020675,2]
[330567037,1719579043394,-3674.74734209,0.00020715,2]
[330567039,1719579043403,-174.263907,0.00020752,2]
[330567042,1719579043411,-1137.62,0.0002079,2]
[330567045,1719579043421,-500.0,0.00020799,2]
[330567048,1719579043430,-151.0,0.000208,2]
[330567050,1719579043439,-151.0,0.000208,2]
[330567051,1719579043448,-151.0,0.000208,2]
[330567054,1719579043461,-151.0,0.000208,2]
[330567056,1719579043471,-275.730954,0.000208,2]
[330567058,1719579043481,-151.0,0.000208,2]
[330567060,1719579043491,-155.073438,0.000208,2]
[330567062,1719579043500,-155.073438,0.000208,2]
[330567064,1719579043510,-191.097886,0.000208,2]
[330567066,1719579043519,-191.097886,0.000208,2]
[330567068,1719579043528,-151.0,0.000208,2]
[330567069,1719579043537,-151.0,0.000208,2]
[330567071,1719579043546,-151.0,0.000208,2]
[330567073,1719579043555,-151.0,0.000208,2]
[330567075,1719579043565,-151.0,0.000208,2]
[330567078,1719579043575,-626.507742,0.000208,2]
[330567079,1719579043584,-626.507742,0.000208,2]
[330567082,1719579043594,-151.0,0.000208,2]
[330567083,1719579043603,-151.0,0.000208,2]
[330567085,1719579043616,-151.0,0.000208,2]
[330567087,1719579043626,-158.415854,0.000208,2]
[330567089,1719579043636,-151.0,0.000208,2]
[330567090,1719579043647,-862.221559,0.000208,2]
[330567091,1719579043660,-862.221559,0.000208,2]
[330567092,1719579043669,-151.0,0.000208,2]
[330567093,1719579043678,-192.858404,0.000208,2]
[330567094,1719579043688,-199.004141,0.000208,2]
[330567095,1719579043698,-199.004141,0.000208,2]
[330567096,1719579043708,-209752.004107,0.000208,3]
[330567097,1719579043718,-320.82085,0.000208,2]
[330567098,1719579043729,-320.82085,0.000208,2]
[330567099,1719579043739,-192.419526,0.000208,2]
[330567100,1719579043748,-192.419526,0.000208,2]
[330567101,1719579043758,-173.036362,0.000208,2]
[330567102,1719579043768,-173.036362,0.000208,2]
[330567103,1719579043778,-151.0,0.000208,2]
[330567104,1719579043788,-910.738176,0.000208,2]
[330567105,1719579043799,-910.738176,0.000208,2]
[330567106,1719579043810,-553.103694,0.000208,2]
[330567107,1719579043825,-553.103694,0.000208,2]
[330567108,1719579043836,-151.0,0.000208,2]
[330567109,1719579043846,-151.0,0.000208,2]
[330567110,1719579043855,-151.0,0.000208,2]
[330567112,1719579043867,-165.896272,0.000208,2]
[330567114,1719579043877,-151.0,0.000208,2]
[330567116,1719579043886,-151.0,0.000208,2]
[330567118,1719579043895,-151.0,0.000208,2]
[330567119,1719579043905,-151.0,0.000208,2]
[330567120,1719579043914,-182.0,0.00020813,2]
[330567121,1719579043923,-500.0,0.00020821,2]
[330567122,1719579043933,-177.73,0.00020828,2]
[330567123,1719579043943,-687.748777,0.00020836,2]
[330567124,1719579043952,-187.440255,0.00020836,2]
[330567125,1719579043962,-166.53,0.00020877,2]
[330567126,1719579043971,-1137.62,0.0002089,2]
[330567127,1719579043981,-151.0,0.000209,2]
[330567129,1719579043990,-151.0,0.000209,2]
[330567130,1719579044000,-151.0,0.000209,2]
[330567132,1719579044008,-151.0,0.000209,2]
[330567134,1719579044017,-151.0,0.000209,2]
[330567136,1719579044026,-155.073438,0.000209,2]
[330567138,1719579044036,-155.073438,0.000209,2]
[330567140,1719579044046,-191.097886,0.000209,2]
[330567141,1719579044055,-191.097886,0.000209,2]
[330567142,1719579044065,-151.0,0.000209,2]
[330567143,1719579044074,-151.0,0.000209,2]
[330567144,1719579044084,-2000.0,0.000209,7]
[330567145,1719579044092,-90463.01478481,0.000209,3]
[330567152,1719579044822,-1167.82470428,0.000209,3]
[330567153,1719579044834,-470.89476816,0.000209,3]
[330567154,1719579044845,-549.95445231,0.000209,3]
[330567155,1719579044858,-11506.35421985,0.000209,3]
[330567156,1719579044892,-1129.10829927,0.000209,3]
[330567157,1719579044903,-4737.26219031,0.000209,3]
[330567158,1719579044914,-411.89588285,0.000209,3]
[330567159,1719579044926,-880.188012,0.000209,3]
[330567160,1719579044937,-512.0,0.000209,3]
[330567161,1719579044948,-14287.48438063,0.000209,3]
[330567162,1719579044974,-807.664508,0.000209,3]
[330567163,1719579046353,-1000.0,0.000189,2]
[330567164,1719579046364,-466.79589,0.00018967,2]
[330567165,1719579046376,-991.097168,0.00018967,2]
[330567166,1719579046386,-717.18626309,0.00019389,2]
[330567167,1719579046396,-409.88070958,0.00019565,2]
[330567168,1719579046405,-5.52682356,0.00019926,2]
[330567169,1719579046431,-1452.36623444,0.00019926,2]
[330567170,1719579046440,-1457.893058,0.000208,2]
[330567171,1719579046450,-19658.67835662,0.000209,3]
[330567172,1719579046462,-373.5132,0.000209,3]
[330567173,1719579046473,-1706.92983135,0.000209,3]
[330567174,1719579046498,-61487.68326756,0.000209,3]
[330567175,1719579046508,-553.103694,0.000209,2]
[330567176,1719579046517,-553.103694,0.000209,2]
[330567177,1719579046527,-151.0,0.000209,2]
[330567178,1719579046537,-151.0,0.000209,2]
[330567179,1719579046546,-151.0,0.000209,2]
[330567180,1719579046555,-151.0,0.000209,2]
[330567181,1719579046564,-151.0,0.000209,2]
[330567182,1719579046574,-151.0,0.000209,2]
[330567183,1719579046583,-151.0,0.000209,2]
[330567184,1719579046594,-1457.893058,0.000209,2]
[330567185,1719579046603,-5015.82097915,0.00020914,2]
[330567186,1719579046615,-3674.74734209,0.00020987,2]
[330567187,1719579046625,-1137.62,0.0002099,2]
[330567188,1719579046635,-777.73590397,0.00021,2]
[330567189,1719579046652,-465.92557239,0.00021,4]
[330567190,1719579046663,-1411.0,0.00021,2]
[330567191,1719579046672,-250000.0,0.00021,2]
[330567192,1719579046682,-305.62686955,0.00021,2]
[330567193,1719579046694,-1250.0,0.00021,2]
[330567194,1719579046704,-151.0,0.00021,2]
[330567195,1719579046714,-151.0,0.00021,2]
[330567196,1719579046725,-151.0,0.00021,2]
[330567197,1719579046737,-151.0,0.00021,2]
[330567198,1719579046747,-273.651968,0.00021,2]
[330567199,1719579046756,-155.073438,0.00021,2]
[330567200,1719579046766,-155.073438,0.00021,2]
[330567201,1719579046775,-191.097886,0.00021,2]
[330567202,1719579046785,-191.097886,0.00021,2]
[330567203,1719579046795,-151.0,0.00021,2]
[330567204,1719579046804,-151.0,0.00021,2]
[330567205,1719579046815,-151.0,0.00021,2]
[330567206,1719579046824,-151.0,0.00021,2]
[330567207,1719579046834,-626.507742,0.00021,2]
[330567208,1719579046843,-626.507742,0.00021,2]
[330567209,1719579046852,-174.272392,0.00021,2]
[330567210,1719579046863,-176.613439,0.00021,2]
[330567211,1719579046873,-151.0,0.00021,2]
[330567212,1719579046883,-151.0,0.00021,2]
[330567213,1719579046893,-862.221559,0.00021,2]
[330567214,1719579046902,-862.221559,0.00021,2]
[330567215,1719579046912,-199.004141,0.00021,2]
[330567216,1719579046922,-199.004141,0.00021,2]
[330567217,1719579046932,-320.82085,0.00021,2]
[330567218,1719579046941,-320.82085,0.00021,2]
[330567219,1719579046951,-192.419526,0.00021,2]
[330567220,1719579046961,-192.419526,0.00021,2]
[330567221,1719579046971,-173.036362,0.00021,2]
[330567222,1719579046980,-173.036362,0.00021,2]
[330567223,1719579046990,-151.0,0.00021,2]
[330567224,1719579047000,-910.738176,0.00021,2]
[330567225,1719579047009,-910.738176,0.00021,2]
[330567226,1719579047019,-553.103694,0.00021,2]
[330567227,1719579047028,-553.103694,0.00021,2]
[330567228,1719579047038,-151.0,0.00021,2]
[330567229,1719579047047,-151.0,0.00021,2]
[330567230,1719579047057,-154.638536,0.00021,2]
[330567231,1719579047067,-151.0,0.00021,2]
[330567232,1719579047076,-151.0,0.00021,2]
[330567233,1719579047086,-258.035437,0.00021,2]
[330567234,1719579047095,-151.0,0.00021,2]
[330567235,1719579047108,-415.85,0.00021034,2]
[330567236,1719579047126,-787.05,0.00021034,2]
[330567237,1719579047136,-280.23,0.00021072,2]
[330567238,1719579047145,-167.111417,0.00021087,2]
[330567239,1719579047155,-687.748777,0.00021087,2]
[330567240,1719579047166,-187.440255,0.00021087,2]
[330567241,1719579047175,-174.263907,0.00021087,2]
[330567242,1719579047185,-500.0,0.00021095,2]
[330567243,1719579047195,-339.97499106,0.00021223,2]
[330567244,1719579047204,-182.0,0.00021248,2]
[330567245,1719579047213,-155.96,0.00021249,2]
[330567246,1719579047223,-3674.74734209,0.00021259,2]
[330567247,1719579047232,-701.867597,0.00021286,2]
[330567248,1719579047241,-405.918089,0.00021286,2]
[330567249,1719579047250,-319.488564,0.00021286,2]
[330567250,1719579047259,-931.681093,0.00021286,2]
[330567251,1719579047269,-198.282046,0.00021286,2]
[330567252,1719579047278,-172.030678,0.00021286,2]
[330567253,1719579047287,-175.466899,0.00021286,2]
[330567254,1719579047297,-199.680354,0.00021286,2]
[330567255,1719579047306,-232.920273,0.00021286,2]
[330567256,1719579047315,-200.499241,0.00021286,2]
[330567257,1719579047324,-202.978354,0.00021286,2]
[330567258,1719579047334,-295.354367,0.00021286,2]
[330567259,1719579047343,-400.0,0.00021286,2]
[330567260,1719579047352,-252.344111,0.00021286,2]
[330567261,1719579047364,-157.773893,0.00021286,2]
[330567262,1719579047373,-167.117338,0.00021286,2]
[330567263,1719579047382,-169.305,0.00021286,2]
[330567264,1719579047392,-162.034296,0.00021286,2]
[330567265,1719579047402,-156.200212,0.00021286,2]
[330567266,1719579047411,-278.519032,0.00021286,2]
[330567267,1719579047421,-162.710437,0.00021286,2]
[330567268,1719579047430,-786.475923,0.00021286,2]
[330567269,1719579047440,-182.300168,0.00021286,2]
[330567270,1719579047450,-163.588787,0.00021286,2]
[330567271,1719579047460,-5742.112373,0.00021286,2]
[330567272,1719579047470,-1051.535752,0.00021286,2]
[330567273,1719579047479,-172.034542,0.00021286,2]
[330567274,1719579047489,-305.456909,0.00021286,2]
[330567276,1719579047499,-2871.056187,0.00021286,2]
[330567277,1719579047509,-950.24588,0.00021286,2]
[330567278,1719579047519,-207.542993,0.00021286,2]
[330567279,1719579047530,-193.940895,0.00021286,2]
[330567280,1719579047540,-172.64,0.0002135,2]
[330567281,1719579047550,-4907.94960647,0.00021368,2]
[330567282,1719579047559,-631.84036922,0.00021369,2]
[330567283,1719579047568,-150.0,0.00021487,2]
[330567284,1719579047578,-3674.74734209,0.00021531,2]
[330567285,1719579047587,-701.867597,0.00021552,2]
[330567286,1719579047596,-405.918089,0.00021552,2]
[330567287,1719579047606,-319.488564,0.00021552,2]
[330567288,1719579047617,-931.681093,0.00021552,2]
[330567289,1719579047626,-175.466899,0.00021552,2]
[330567290,1719579047636,-106.7726565,0.00021552,2]
[330567291,1719579047653,-126.1476165,0.00021552,2]
[330567292,1719579047662,-372.25738351,0.00021552,2]
[330567293,1719579047674,-27.74261649,0.00021552,2]
[330567294,1719579047683,-252.344111,0.00021552,2]
[330567295,1719579047693,-786.475923,0.00021552,2]
[330567296,1719579047702,-445.91462451,0.00021552,2]
[330567297,1719579047713,-2149.81509439,0.00021552,2]
[330567310,1719579049364,-205.27551127,0.00014099,2]
[330567311,1719579049374,-156.251,0.00017642,2]
[330567312,1719579049383,-302.07348872,0.00021,2]
[330567313,1719579049394,-975.35223383,0.00021,2]
[330567314,1719579049420,-180.46733545,0.00021,2]
[330567315,1719579049429,-3146.3826541,0.00021552,2]
[330567316,1719579049439,-1051.535752,0.00021552,2]
[330567317,1719579049448,-305.456909,0.00021552,2]
[330567318,1719579049457,-2871.056187,0.00021552,2]
[330567319,1719579049467,-950.24588,0.00021552,2]
[330567320,1719579049476,-150.52,0.00021638,2]
[330567321,1719579049486,-152.91,0.00021644,2]
[330567322,1719579049496,-363.43,0.00021644,2]
[330567323,1719579049506,-357.04,0.00021644,2]
[330567324,1719579049515,-182.0,0.00021683,2]
[330567325,1719579049524,-22306.18,0.00021757,2]
[330567326,1719579049534,-8721.26,0.00021757,2]
[330567327,1719579049543,-3409.37,0.00021757,2]
[330567328,1719579049554,-1103.14,0.00021757,2]
[330567329,1719579049564,-5799.3,0.00021757,2]
[330567330,1719579049573,-627.62,0.00021757,2]
[330567331,1719579049583,-500.0,0.00021799,2]
[330567332,1719579049592,-3674.74734209,0.00021803,2]
[330567333,1719579049602,-175.01349731,0.00021817,2]
[330567334,1719579049613,-701.867597,0.00021819,2]
[330567335,1719579049623,-405.918089,0.00021819,2]
[330567336,1719579049632,-319.488564,0.00021819,2]
[330567337,1719579049648,-931.681093,0.00021819,2]
[330567338,1719579049657,-198.282046,0.00021819,2]
[330567339,1719579049667,-175.466899,0.00021819,2]
[330567340,1719579049678,-232.920273,0.00021819,2]
[330567341,1719579049690,-252.344111,0.00021819,2]
[330567342,1719579049700,-400.0,0.00021819,2]
[330567343,1719579049710,-167.117338,0.00021819,2]
[330567344,1719579049723,-25.86304326,0.00021819,2]
[330567345,1719579049736,-143.44195674,0.00021819,2]
[330567346,1719579049746,-162.034296,0.00021819,2]
[330567347,1719579049756,-162.710437,0.00021819,2]
[330567348,1719579049766,-786.475923,0.00021819,2]
[330567349,1719579049776,-182.300168,0.00021819,2]
[330567350,1719579049785,-903.56462422,0.00021819,2]
[330567351,1719579049806,-4838.54774878,0.00021819,2]
[330567352,1719579049816,-1051.535752,0.00021819,2]
[330567353,1719579049825,-305.456909,0.00021819,2]
[330567354,1719579049834,-535.15176843,0.00021819,2]
[330567355,1719579049845,-494.80523461,0.00021819,2]
[330567356,1719579049857,-1841.09918396,0.00021819,2]
[330567357,1719579049868,-950.24588,0.00021819,2]
[330567358,1719579049877,-193.940895,0.00021819,2]
[330567359,1719579049886,-500.0,0.00021873,2]
[330567360,1719579049895,-500.0,0.00021882,2]
[330567361,1719579049905,-500.0,0.00021891,2]
[330567362,1719579049914,-500.0,0.00021899,2]
[330567363,1719579049924,-155.0,0.000219,2]
[330567364,1719579049934,-2000.0,0.000219,2]
[330567365,1719579049943,-299.74198704,0.000219,4]
[330567366,1719579049969,-682.25801296,0.000219,4]
[330567367,1719579049979,-296.07149798,0.00021902,2]
[330567368,1719579049990,-2016.69421926,0.00021902,2]
[330567369,1719579050002,-2703.05526191,0.00021902,2]
[330567370,1719579050011,-500.0,0.00021906,2]
[330567371,1719579050020,-3746.67180795,0.00021908,2]
[330567372,1719579050032,-274.68725396,0.00021908,2]
[330567373,1719579050185,-1464.85394051,0.00021908,2]
[330567374,1719579050200,-10513.78699758,0.00021908,2]
[330567375,1719579050210,-500.0,0.00021908,2]
[330567376,1719579050219,-2000.0,0.0002191,2]
[330567377,1719579050228,-500.0,0.00021915,2]
[330567378,1719579050238,-16000.0,0.00021917,2]
[330567379,1719579050247,-500.0,0.00021917,2]
[330567380,1719579050257,-186.43406,0.00021917,2]
[330567381,1719579050267,-862.221559,0.00021917,2]
[330567382,1719579050276,-862.221559,0.00021917,2]
[330567383,1719579050286,-199.004141,0.00021917,2]
[330567384,1719579050296,-150.0,0.00021917,2]
[330567385,1719579050305,-300.0,0.00021917,2]
[330567386,1719579050315,-450.0,0.00021917,2]
[330567387,1719579050324,-600.0,0.00021917,2]
[330567388,1719579050334,-750.0,0.00021917,2]
[330567389,1719579050343,-900.0,0.00021917,2]
[330567390,1719579050353,-857.43444659,0.00021917,2]
[330567391,1719579050366,-199.004141,0.00021917,2]
[330567392,1719579050376,-192.419526,0.00021917,2]
[330567393,1719579050385,-192.419526,0.00021917,2]
[330567394,1719579050395,-662.06,0.00021917,3]
[330567395,1719579050405,-1088.69,0.00021917,3]
[330567396,1719579050414,-528.0,0.00021917,3]
[330567397,1719579050423,-500.0,0.00021917,3]
[330567398,1719579050433,-1562.77,0.00021917,3]
[330567399,1719579050442,-1047.74,0.00021917,3]
[330567400,1719579050452,-500.0,0.00021917,3]
[330567401,1719579050461,-699.42,0.00021917,3]
[330567402,1719579050471,-500.0,0.00021917,3]
[330567403,1719579050481,-543.89,0.00021917,3]
[330567404,1719579050490,-4133.91,0.00021917,3]
[330567405,1719579050500,-2321.58,0.00021917,3]
[330567406,1719579050509,-500.0,0.00021917,3]
[330567407,1719579050519,-500.0,0.00021917,3]
[330567408,1719579050528,-767.87,0.00021917,3]
[330567409,1719579050537,-500.0,0.00021917,3]
[330567410,1719579050547,-1347.28,0.00021917,3]
[330567411,1719579050557,-500.0,0.00021917,3]
[330567412,1719579050566,-802.56,0.00021917,3]
[330567413,1719579050576,-685.83,0.00021917,3]
[330567414,1719579050585,-1403.84,0.00021917,3]
[330567415,1719579050594,-500.0,0.00021917,3]
[330567416,1719579050604,-785.38,0.00021917,3]
[330567417,1719579050616,-500.0,0.00021917,3]
[330567418,1719579050626,-500.0,0.00021917,3]
[330567419,1719579050635,-500.0,0.00021917,3]
[330567420,1719579050663,-500.0,0.00021917,3]
[330567421,1719579050673,-3851.05,0.00021917,3]
[330567422,1719579050682,-500.0,0.00021917,3]
[330567423,1719579050691,-500.0,0.00021917,3]
[330567424,1719579050701,-500.0,0.00021917,3]
[330567425,1719579050710,-920.22,0.00021917,3]
[330567426,1719579050719,-1332.43,0.00021917,3]
[330567427,1719579050731,-500.0,0.00021917,3]
[330567428,1719579050741,-668.77,0.00021917,3]
[330567429,1719579050751,-1624.0,0.00021917,3]
[330567430,1719579050760,-5362.06,0.00021917,3]